bitfinex/quotes_ETHUSD_20250827
["timestamp","ask_amount","ask_price","bid_price","bid_amount"]
[1756267765207,2.15280618,4645.1,4645.0,0.99699999]
[1756267765447,2.70770279,4645.1,4643.7,0.4571]
[1756267765612,2.15326974,4644.1,4643.6,4.963]
[1756267765916,2.15272692,4645.3,4643.6,4.963]
[1756267765917,0.108,4644.3,4643.8,0.4771]
[1756267766115,4.073,4646.3,4643.8,0.4771]
[1756267766116,3.0,4646.6,4643.9,0.47863362]
[1756267766344,3.0,4646.6,4644.0,2.15330695]
[1756267766345,2.15276957,4645.2,4644.0,2.15330695]
[1756267766544,3.3022,4646.5,4643.8,0.02]
[1756267766545,2.15292065,4644.9,4644.1,0.4571]
[1756267766756,2.4543677,4646.5,4644.2,4.076]
[1756267766757,0.3022,4646.5,4644.2,4.076]
[1756267767054,0.022,4646.8,4644.3,1.12574043]
[1756267767208,0.022,4646.8,4644.4,2.60060988]
[1756267767414,2.152499,4645.8,4644.5,3.80908429]
[1756267767651,2.152499,4645.8,4644.6,0.8946888]
[1756267767807,2.15234481,4646.1,4644.7,0.4475]
[1756267768013,0.022,4646.8,4644.8,0.02152945]
[1756267768213,0.022,4646.8,4644.9,2.60039887]
[1756267768214,2.15239294,4646.0,4644.9,2.60039887]
[1756267768423,2.15264186,4645.5,4644.9,0.4475]
[1756267768749,2.15272079,4645.3,4644.9,0.4475]
[1756267768953,2.15280618,4645.1,4645.0,4.076]
[1756267769153,0.23913413,4646.7,4645.0,4.5235]
[1756267769354,0.022,4646.8,4645.1,0.4076]
[1756267769540,2.15240148,4646.0,4645.0,4.5235]
[1756267769748,2.15243959,4645.9,4645.0,4.5235]
[1756267769918,0.022,4646.8,4645.0,4.5235]
[1756267769919,2.17405382,4646.8,4645.2,2.1527493]
[1756267770126,0.022,4646.8,4645.6,2.15253894]
[1756267770332,0.022,4646.8,4645.3,2.60021349]
[1756267770333,2.1522533,4646.3,4645.7,5.73]
[1756267770559,2.15220292,4646.5,4645.7,5.73]
[1756267770777,2.1740206,4646.8,4645.7,8.3300127]
[1756267770926,0.022,4646.8,4645.8,2.15246909]
[1756267771124,0.022,4646.8,4645.7,6.1775]
[1756267771327,0.022,4646.8,4646.7,2.1520649]
[1756267771521,0.002,4647.3,4647.2,2.15183336]
[1756267771974,0.435,4650.8,4647.2,0.46901833]
[1756267772255,2.15093015,4649.2,4648.0,2.15145298]
[1756267772457,2.15093015,4649.2,4647.1,2.15187033]
[1756267772458,0.0163433,4649.4,4648.1,2.4625]
[1756267772673,2.15081194,4649.5,4648.2,1.655]
[1756267772965,2.15030641,4650.5,4648.2,1.655]
[1756267773257,2.15107997,4648.9,4647.9,1.655]
[1756267773432,2.15146299,4648.0,4647.9,1.655]
[1756267773850,3.0,4649.7,4647.9,2.1025]
[1756267774045,2.15124569,4648.5,4647.9,2.1025]
[1756267774247,2.15146299,4648.0,4647.9,1.655]
[1756267774452,2.15146299,4648.0,4647.9,5.738]
[1756267774965,0.002,4649.2,4647.9,6.1855]
[1756267775152,0.002,4649.2,4648.0,0.4475]
[1756267775153,2.1511575,4648.7,4648.0,0.4475]
[1756267775460,0.002,4649.2,4648.1,4.085]
[1756267775626,2.15137042,4648.2,4648.1,4.085]
[1756267775838,2.15137042,4648.2,4648.1,4.083]
[1756267776042,2.15136925,4648.3,4648.1,4.1902]
[1756267776237,2.15137042,4648.2,4648.1,4.1902]
[1756267776468,2.15137042,4648.2,4648.1,4.1932]
[1756267777772,2.15137042,4648.2,4648.1,4.1972]
[1756267778734,2.15137042,4648.2,4648.1,0.1072]
[1756267779059,2.15137042,4648.2,4648.1,4.1912]
[1756267779672,2.15146299,4648.0,4647.9,1.655]
[1756267779851,2.15146299,4648.0,4647.9,5.736]
[1756267780060,2.15146299,4648.0,4647.9,1.655]
[1756267780355,2.15150928,4647.9,4647.8,0.02]
[1756267780743,2.15128644,4648.4,4647.8,0.5747]
[1756267780996,0.1072,4648.6,4647.8,0.5547]
[1756267781274,0.002,4649.2,4647.9,0.19194398]
[1756267781275,2.15095394,4649.1,4647.9,0.19194398]
[1756267781572,2.1511853,4648.6,4648.5,0.1072]
[1756267781774,2.1511853,4648.6,4648.5,4.1852]
[1756267782175,0.002,4649.2,4648.5,4.37650217]
[1756267782380,0.002,4649.2,4648.6,0.63980217]
[1756267782563,0.002,4649.2,4648.7,0.19230217]
[1756267782773,0.002,4649.2,4648.8,0.19230217]
[1756267782950,2.15290933,4649.2,4648.9,0.19230217]
[1756267783150,0.002,4649.2,4648.6,0.19230217]
[1756267783371,0.002,4649.2,4648.7,0.19230217]
[1756267783549,2.1510126,4649.0,4648.7,0.19230217]
[1756267783748,2.1510511,4648.9,4648.6,0.63980217]
[1756267783944,2.58145776,4648.9,4648.6,0.19230217]
[1756267784150,2.15112735,4648.8,4648.5,4.077]
[1756267784344,0.002,4649.2,4648.6,0.4475]
[1756267784560,0.002,4649.2,4648.6,0.63968838]
[1756267785073,2.15291055,4649.2,4648.6,0.4475]
[1756267785375,2.15291055,4649.2,4648.7,4.30227804]
[1756267785376,0.002,4649.2,4648.7,4.30227804]
[1756267785577,0.002,4649.2,4648.8,0.83158234]
[1756267785752,0.002,4649.2,4649.0,2.15099239]
[1756267786078,0.002,4649.2,4649.1,6.43099511]
[1756267786281,0.002,4649.2,4649.1,4.28004117]
[1756267786451,0.002,4649.2,4649.1,7.07036791]
[1756267787078,0.002,4649.2,4649.1,8.50036791]
[1756267787355,0.002,4649.2,4649.1,8.61546045]
[1756267787759,0.002,4649.2,4649.1,9.27546045]
[1756267787955,0.002,4649.2,4649.1,10.41810958]
[1756267788346,0.002,4649.2,4649.1,9.75810958]
[1756267788749,0.002,4649.2,4649.1,9.75771078]
[1756267789169,0.002,4649.2,4649.1,5.66971078]
[1756267789383,0.002,4649.2,4649.1,10.42571078]
[1756267789556,0.002,4649.2,4649.1,9.65061824]
[1756267789948,0.002,4649.2,4649.1,6.35701517]
[1756267790152,0.002,4649.2,4649.1,6.16554117]
[1756267790379,0.002,4649.2,4649.1,8.31649511]
[1756267790579,0.002,4649.2,4649.1,8.50797014]
[1756267790971,0.002,4649.2,4649.1,6.3570162]
[1756267791170,0.002,4649.2,4649.1,8.50797014]
[1756267791571,0.002,4649.2,4649.1,4.9270162]
[1756267791785,0.002,4649.2,4649.1,4.4795162]
[1756267791986,0.002,4649.2,4649.1,4.28804117]
[1756267792456,0.002,4649.2,4649.1,4.39524117]
[1756267792880,0.002,4649.2,4649.1,4.2032]
[1756267793876,0.002,4649.2,4649.1,0.1072]
[1756267794078,2.15290768,4649.2,4649.1,4.1962]
[1756267794275,0.002,4649.2,4649.1,4.1962]
[1756267794786,2.15290768,4649.2,4649.1,4.2052]
[1756267794954,2.36819845,4649.2,4649.1,4.2052]
[1756267795372,2.36819845,4649.2,4649.1,4.098]
[1756267795569,2.36819845,4649.2,4648.4,1.655]
[1756267795570,0.65229077,4649.2,4648.6,4.097]
[1756267795770,2.1511853,4648.6,4648.5,0.1072]
[1756267796877,2.6025286,4648.6,4648.5,0.1072]
[1756267797069,2.15155557,4647.8,4647.7,1.654]
[1756267797268,2.15140718,4648.2,4647.7,0.19245062]
[1756267797468,0.435,4648.6,4647.7,0.19245062]
[1756267797469,2.15155557,4647.8,4647.7,0.19245062]
[1756267797666,2.15155557,4647.8,4647.7,0.29965062]
[1756267798106,2.15155557,4647.8,4647.7,0.1072]
[1756267798314,2.60145557,4647.8,4647.7,0.1072]
[1756267798484,0.4499,4647.8,4647.3,4.088]
[1756267798667,2.15164816,4647.6,4647.5,0.1072]
[1756267799196,0.4499,4648.4,4647.5,0.29977662]
[1756267799398,0.4499,4648.4,4647.6,4.085]
[1756267799691,0.4499,4648.4,4647.8,0.1072]
[1756267799692,2.15150928,4647.9,4647.8,0.1072]
[1756267799889,2.15143486,4648.1,4647.3,4.084]
[1756267799890,0.1072,4648.1,4647.5,0.1072]
[1756267800067,0.1072,4648.3,4647.5,0.1072]
[1756267800263,4.081,4648.7,4647.3,0.001]
[1756267800264,2.15174075,4647.4,4647.3,0.001]
[1756267800664,2.60164075,4647.4,4647.3,0.001]
[1756267800859,2.70884075,4647.4,4647.3,0.001]
[1756267801089,2.15166676,4647.6,4647.3,0.001]
[1756267801409,0.4499,4648.7,4647.3,0.001]
[1756267801410,0.4499,4648.7,4647.4,0.19301554]
[1756267801567,2.25843158,4648.5,4647.5,0.19301554]
[1756267801896,2.15157455,4647.8,4647.6,4.27401554]
[1756267802065,2.15157455,4647.8,4647.7,0.30021554]
[1756267802685,2.15174075,4647.4,4647.3,0.001]
[1756267803103,2.60164075,4647.4,4647.3,0.001]
[1756267804368,2.60164075,4647.4,4647.3,1e-08]
[1756267804369,5.61798405,4647.4,4647.3,1e-08]
[1756267804581,1.654,4648.1,4647.3,1e-08]
[1756267804582,0.33673548,4648.2,4647.3,1e-08]
[1756267804873,3.0,4648.4,4647.4,0.19287602]
[1756267805074,2.15173401,4647.5,4647.3,1e-08]
[1756267805274,2.15174075,4647.4,4647.3,1e-08]
[1756267805465,2.60164075,4647.4,4647.3,1e-08]
[1756267805903,2.61798405,4647.4,4647.3,1e-08]
[1756267806681,5.60164075,4647.4,4647.3,1e-08]
[1756267806909,9.68164075,4647.4,4647.3,1e-08]
[1756267807198,6.25756124,4647.4,4647.3,1e-08]
[1756267807407,10.33556124,4647.4,4647.3,1e-08]
[1756267808309,6.25756124,4647.4,4647.3,1e-08]
[1756267808474,10.33556124,4647.4,4647.3,1e-08]
[1756267808878,3.66,4647.3,4646.6,1e-08]
[1756267809077,2.1520649,4646.7,4646.6,1e-08]
[1756267809303,5.8284082,4646.7,4646.6,1e-08]
[1756267809502,10.3349649,4646.7,4646.6,1e-08]
[1756267810271,10.3349649,4646.7,4645.8,0.02]
[1756267810272,2.15225017,4646.3,4646.2,1e-08]
[1756267810610,6.80725017,4646.3,4646.2,1e-08]
[1756267810809,10.87725017,4646.3,4646.2,1e-08]
[1756267811609,11.32715017,4646.3,4646.2,1e-08]
[1756267811811,11.75738412,4646.3,4646.2,1e-08]
[1756267812528,8.34738412,4646.3,4646.2,1e-08]
[1756267812682,12.74823955,4646.3,4646.2,1e-08]
[1756267813278,5.8122965,4646.2,4646.1,1e-08]
[1756267813496,6.2621965,4646.2,4646.1,1e-08]
[1756267813712,6.46821699,4646.2,4646.1,1e-08]
[1756267813914,10.98011699,4646.2,4646.1,1e-08]
[1756267814218,9.86721699,4646.2,4646.1,1e-08]
[1756267814375,2.80821699,4646.2,4646.1,1e-08]
[1756267814577,6.97521699,4646.2,4646.1,1e-08]
[1756267815108,2.91621699,4646.2,4646.1,1e-08]
[1756267815411,10.44046029,4646.2,4646.1,1e-08]
[1756267815614,13.42511697,4646.2,4646.1,1e-08]
[1756267815800,17.33051697,4646.2,4646.1,1e-08]
[1756267815993,17.77941697,4646.2,4646.1,1e-08]
[1756267816499,18.43941697,4646.2,4646.1,1e-08]
[1756267816824,14.38441697,4646.2,4646.1,1e-08]
[1756267817032,13.72441697,4646.2,4646.1,1e-08]
[1756267817208,12.97521697,4646.2,4646.1,1e-08]
[1756267817413,17.02521697,4646.2,4646.1,1e-08]
[1756267817716,17.32451697,4646.2,4646.1,1e-08]
[1756267817915,17.77441697,4646.2,4646.1,1e-08]
[1756267818531,2.15252814,4645.7,4645.6,0.001]
[1756267818682,14.33659609,4645.7,4643.9,0.4544]
[1756267818882,2.45219887,4644.9,4643.8,0.02]
[1756267819205,9.62254217,4644.9,4643.8,0.02]
[1756267819399,6.67009887,4644.9,4644.8,1e-08]
[1756267819700,9.30489887,4644.9,4644.8,1e-08]
[1756267819900,5.26089887,4644.9,4644.8,1e-08]
[1756267820101,2.26089887,4644.9,4644.8,1e-08]
[1756267820621,6.02644217,4644.9,4644.8,1e-08]
[1756267820781,6.67009887,4644.9,4644.8,1e-08]
[1756267821117,21.15764996,4644.9,4644.8,1e-08]
[1756267821414,21.15764996,4644.9,4643.8,1e-08]
[1756267821415,2.81336247,4643.9,4643.8,1e-08]
[1756267821616,21.97225686,4643.9,4643.8,1e-08]
[1756267821915,22.70511356,4643.9,4643.8,1e-08]
[1756267822514,22.81487884,4643.9,4643.8,1e-08]
[1756267822681,11.1893933,4643.9,4643.8,1e-08]
[1756267823309,2.1536126,4643.4,4641.9,0.4544]
[1756267823495,2.15382627,4642.9,4641.9,0.4544]
[1756267823695,9.19682627,4642.9,4641.9,0.4544]
[1756267823896,2.15429026,4641.9,4641.8,0.02]
[1756267824918,2.15429026,4641.9,4640.8,0.02]
[1756267824919,3.0,4641.8,4640.8,0.02]
[1756267825105,4.041,4641.7,4640.8,0.02]
[1756267825304,2.15457569,4641.3,4640.9,0.4544]
[1756267825505,2.15456876,4641.3,4641.2,0.3035]
[1756267825719,0.0163433,4642.1,4640.8,0.02]
[1756267825720,2.15475446,4640.9,4640.8,0.02]
[1756267826812,2.15475446,4640.9,4640.8,0.018923]
[1756267828324,2.15475446,4640.9,4640.8,0.751223]
[1756267828730,0.2170653,4641.8,4640.8,0.751223]
[1756267828896,2.1546515,4641.2,4640.8,0.751223]
[1756267829101,0.2170653,4641.8,4640.8,0.018923]
[1756267829102,6.18349226,4641.5,4640.8,0.018923]
[1756267829305,2.15463419,4641.2,4640.8,0.018923]
[1756267829508,3.0,4641.5,4641.1,0.2905]
[1756267829815,4.03,4642.3,4641.2,0.4418]
[1756267830016,2.15456876,4641.3,4641.2,0.4418]
[1756267830204,2.15456876,4641.3,4641.2,0.7323]
[1756267830607,2.15467963,4641.1,4640.8,0.018923]
[1756267830814,2.15475446,4640.9,4640.8,0.018923]
[1756267831343,0.33714476,4642.5,4640.8,0.309423]
[1756267831344,0.108,4641.3,4640.8,0.309423]
[1756267831544,5.15410464,4642.3,4640.9,0.4418]
[1756267831545,0.108,4641.5,4640.9,0.4418]
[1756267832033,0.54912494,4642.2,4641.4,0.3985]
[1756267832034,0.108,4642.2,4641.4,0.3985]
[1756267832201,0.108,4642.2,4641.5,0.4418]
[1756267832638,2.26215104,4642.2,4642.1,0.2905]
[1756267832808,0.108,4642.2,4641.5,0.4418]
[1756267833008,0.108,4642.2,4642.1,0.2905]
[1756267833311,2.15405845,4642.4,4642.1,0.7323]
[1756267833512,2.15401619,4642.5,4642.2,0.4418]
[1756267833718,2.15401619,4642.5,4642.4,0.2905]
[1756267833917,0.108,4642.6,4642.4,0.7323]
[1756267834234,0.02,4642.8,4642.5,0.4418]
[1756267834442,0.02,4642.8,4642.5,0.5498]
[1756267834637,0.02,4642.8,4642.7,0.2905]
[1756267835007,0.02,4642.8,4642.7,0.7323]
[1756267835915,0.02,4642.8,4641.9,3.81025706]
[1756267835916,0.02,4642.8,4642.2,4.017]
[1756267836118,2.15402766,4642.5,4642.2,4.017]
[1756267836318,2.15402766,4642.5,4642.4,0.2905]
[1756267836645,2.15410464,4642.3,4642.2,4.017]
[1756267836834,0.128,4642.8,4642.1,0.108]
[1756267837522,0.02,4642.8,4641.9,5.67]
[1756267837727,2.15424386,4642.0,4641.9,5.67]
[1756267838645,2.17058716,4642.0,4641.2,1.656]
[1756267838846,2.15456876,4641.3,4641.2,3.788]
[1756267839151,2.15456876,4641.3,4641.2,3.68]
[1756267839620,0.108,4641.4,4641.2,4.4123]
[1756267839823,0.108,4641.4,4641.3,0.65647439]
[1756267840032,0.108,4641.4,4641.3,1.11917183]
[1756267840229,0.02,4642.8,4641.3,1.40967183]
[1756267840549,2.15401184,4642.5,4642.0,0.108]
[1756267840753,0.108,4642.6,4642.4,0.2905]
[1756267840941,0.02,4642.8,4642.5,0.4418]
[1756267841121,2.15391905,4642.7,4642.5,0.5498]
[1756267841322,2.15391905,4642.7,4642.6,0.7323]
[1756267841932,2.15396545,4642.6,4642.5,0.108]
[1756267842159,2.15405824,4642.4,4642.3,4.006]
[1756267842732,2.15405824,4642.4,4642.1,1.656]
[1756267842733,2.15415104,4642.2,4642.1,1.656]
[1756267842931,2.15433667,4641.8,4641.7,4.003]
[1756267843256,2.26233667,4641.8,4641.7,4.003]
[1756267844221,2.15452234,4641.4,4641.3,1.656]
[1756267844560,2.26252234,4641.4,4641.3,1.656]
[1756267846721,2.15452234,4641.4,4641.3,2.14026997]
[1756267846923,2.15452234,4641.4,4641.3,2.24826997]
[1756267847122,2.15452234,4641.4,4641.3,1.95776997]
[1756267847357,2.15452234,4641.4,4641.3,5.84076997]
[1756267847719,2.15452234,4641.4,4641.3,5.647]
[1756267848857,2.15452234,4641.4,4641.3,6.3793]
[1756267849066,2.15452234,4641.4,4641.3,1.656]
[1756267849363,2.47797457,4641.4,4641.3,1.656]
[1756267850858,2.47797457,4641.4,4641.3,1.65506112]
[1756267851067,0.66,4641.0,4640.8,1e-08]
[1756267851237,5.15475446,4640.9,4640.8,1e-08]
[1756267851439,6.02275446,4640.9,4640.8,1e-08]
[1756267852564,5.57165446,4640.9,4640.8,1e-08]
[1756267853342,6.68275446,4640.9,4640.8,1e-08]
[1756267853669,7.12073589,4640.9,4640.8,1e-08]
[1756267854071,7.12073589,4640.9,4640.3,1e-08]
[1756267854072,0.66,4640.5,4640.3,1e-08]
[1756267854241,2.26298663,4640.4,4640.3,1e-08]
[1756267854569,2.91115964,4640.4,4640.3,1e-08]
[1756267854769,3.22005964,4640.4,4640.3,1e-08]
[1756267855383,2.26298663,4640.4,4640.3,4.26550001]
[1756267855670,2.15495484,4640.5,4640.3,4.70730001]
[1756267855850,0.002,4641.9,4640.4,0.4418]
[1756267855851,2.15480711,4640.8,4640.4,0.4418]
[1756267856051,2.1548485,4640.7,4640.5,0.4418]
[1756267856252,0.108,4640.9,4640.6,0.7323]
[1756267856559,0.108,4641.2,4640.7,1.657]
[1756267856877,2.15489376,4640.6,4640.3,1e-08]
[1756267857208,2.15498663,4640.4,4640.3,1e-08]
[1756267857837,2.15498663,4640.4,4640.3,0.30860001]
[1756267858240,2.15484754,4640.7,4640.3,0.73890001]
[1756267858476,0.002,4641.4,4640.3,0.73890001]
[1756267858477,2.15494237,4640.5,4640.4,0.4303]
[1756267858682,2.15494237,4640.5,4640.4,0.7389]
[1756267858984,2.15465062,4641.2,4640.4,0.7389]
[1756267859181,2.15480679,4640.8,4640.4,0.7389]
[1756267859385,2.15480679,4640.8,4640.4,0.3086]
[1756267859559,2.15480679,4640.8,4640.5,0.4303]
[1756267859754,2.15480679,4640.8,4640.3,1e-08]
[1756267859755,2.15480679,4640.8,4640.7,0.3086]
[1756267860081,2.15480679,4640.8,4640.7,6.3669]
[1756267860280,0.002,4641.4,4640.7,6.3669]
[1756267860496,2.15654533,4641.4,4640.7,6.3669]
[1756267860652,2.15456876,4641.3,4640.7,6.3669]
[1756267860985,2.15480089,4640.8,4640.7,6.3669]
[1756267861351,0.002,4641.4,4640.7,6.3669]
[1756267861779,2.15473333,4641.0,4640.7,6.3669]
[1756267862078,2.15475446,4640.9,4640.8,4.3933]
[1756267862281,2.15475446,4640.9,4640.8,3.961]
[1756267862649,2.15475446,4640.9,4640.8,3.911]
[1756267862862,2.15480089,4640.8,4640.7,1.657]
[1756267863060,2.15498663,4640.4,4640.3,1e-08]
[1756267863366,2.44588663,4640.4,4640.3,1e-08]
[1756267863787,2.46222993,4640.4,4640.3,1e-08]
[1756267864150,5.88288663,4640.4,4640.3,1e-08]
[1756267864350,6.53809758,4640.4,4640.3,1e-08]
[1756267866783,7.19809758,4640.4,4640.3,1e-08]
[1756267867083,6.20909758,4640.4,4640.3,1e-08]
[1756267867286,5.26298663,4640.4,4640.3,1e-08]
[1756267867584,5.15498663,4640.4,4640.3,1e-08]
[1756267868153,2.26291301,4640.6,4640.3,1e-08]
[1756267868154,0.108,4640.6,4640.3,0.73890001]
[1756267868482,2.15498663,4640.4,4640.3,2.39590001]
[1756267868887,0.108,4640.6,4640.3,2.39590001]
[1756267869060,2.15498663,4640.4,4640.3,2.39590001]
[1756267869488,0.002,4641.4,4640.3,6.70339001]
[1756267869793,0.002,4641.4,4640.4,0.45184986]
[1756267869973,0.002,4641.4,4640.8,2.15479244]
[1756267870163,0.002,4641.4,4641.3,0.3086]
[1756267870365,0.002,4641.4,4641.3,1.9656]
[1756267870569,0.002,4641.4,4641.3,2.3959]
[1756267871263,0.002,4641.4,4641.3,6.3469]
[1756267871650,0.002,4641.4,4641.3,1.657]
[1756267871987,2.15470803,4641.0,4640.9,2.054]
[1756267872192,2.55360803,4641.0,4640.9,2.054]
[1756267872387,2.15484732,4640.7,4640.6,1.657]
[1756267872561,2.27919062,4640.7,4640.6,1.657]
[1756267872766,5.15489376,4640.6,4640.3,1e-08]
[1756267872989,0.108,4640.4,4640.3,1e-08]
[1756267873190,6.81460034,4640.4,4640.3,1e-08]
[1756267873492,0.66,4639.9,4639.3,1e-08]
[1756267873693,5.15504945,4640.3,4639.3,1e-08]
[1756267873694,5.81545113,4639.4,4639.3,1e-08]
[1756267873891,6.21435113,4639.4,4639.3,1e-08]
[1756267874080,5.74889186,4639.4,4639.3,1e-08]
[1756267874395,2.26345113,4639.4,4639.3,1e-08]
[1756267875192,2.26345113,4639.4,4639.3,0.30860001]
[1756267875193,2.15545113,4639.4,4639.3,0.30860001]
[1756267875356,2.15545113,4639.4,4639.3,0.73890001]
[1756267875757,0.108,4639.7,4639.3,0.98939001]
[1756267875987,0.108,4639.7,4639.4,4.3753]
[1756267876297,2.15509361,4640.2,4639.4,4.3753]
[1756267876298,3.0,4640.2,4639.4,4.3753]
[1756267876484,2.15527122,4639.8,4639.5,0.108]
[1756267876668,2.15521145,4640.0,4639.5,0.108]
[1756267876862,2.15526531,4639.8,4639.7,0.3086]
[1756267877185,2.15526531,4639.8,4639.7,0.7389]
[1756267877583,4.38,4641.3,4639.7,5.27477525]
[1756267877584,2.15456876,4641.3,4639.7,5.27477525]
[1756267877784,2.15501064,4640.4,4639.7,5.15809]
[1756267877989,2.15498234,4640.5,4639.8,3.942]
[1756267878188,2.15545113,4639.4,4639.3,1e-08]
[1756267878693,2.15545113,4639.4,4639.3,3.94200001]
[1756267878883,2.15540697,4639.5,4639.3,3.94200001]
[1756267879083,2.15526531,4639.8,4639.3,3.94200001]
[1756267879398,2.15503307,4640.3,4639.3,3.94200001]
[1756267879586,2.15507952,4640.2,4639.3,3.94200001]
[1756267879897,2.15507952,4640.2,4639.3,1e-08]
[1756267879898,2.44635113,4639.4,4639.3,1e-08]
[1756267880097,2.15543338,4639.5,4639.3,1e-08]
[1756267880277,0.0163433,4639.4,4639.3,1e-08]
[1756267880474,2.17179443,4639.4,4639.3,1e-08]
[1756267880801,2.15545113,4639.4,4639.3,1e-08]
[1756267880990,0.66,4640.6,4639.3,0.73890001]
[1756267881190,2.15542957,4639.5,4639.3,0.73890001]
[1756267881399,2.15545113,4639.4,4639.3,0.73890001]
[1756267881590,2.15545113,4639.4,4639.3,0.30860001]
[1756267881907,0.02,4640.8,4639.3,0.73890001]
[1756267882067,0.4533433,4640.7,4639.3,1e-08]
[1756267882272,2.15545113,4639.4,4639.3,1e-08]
[1756267882495,2.44635113,4639.4,4639.3,1e-08]
[1756267882680,2.15541534,4639.5,4639.3,0.73890001]
[1756267883005,2.15545113,4639.4,4639.3,1e-08]
[1756267883176,2.44635113,4639.4,4639.3,1e-08]
[1756267883371,6.22286634,4639.4,4639.3,1e-08]
[1756267883680,6.64352304,4639.4,4639.3,1e-08]
[1756267883882,7.30352304,4639.4,4639.3,1e-08]
[1756267885425,5.81568345,4638.9,4637.8,0.02]
[1756267885624,10.07466598,4638.9,4637.8,0.02]
[1756267885904,10.80256598,4638.9,4637.8,0.02]
[1756267886279,10.88902198,4638.9,4637.8,0.02]
[1756267887278,10.91972198,4638.9,4637.8,0.02]
[1756267887619,5.58966598,4638.9,4637.9,2.1214]
[1756267887908,5.26368345,4638.9,4637.9,2.1214]
[1756267888281,5.56768345,4638.9,4637.9,3.9814]
[1756267888698,6.22768345,4638.9,4637.9,1.658]
[1756267888898,10.61628345,4638.9,4637.9,1.658]
[1756267889112,10.61628345,4638.9,4637.8,0.02]
[1756267890925,6.68228345,4638.9,4637.8,0.02]
[1756267891134,10.61628345,4638.9,4637.8,0.02]
[1756267891811,6.22768345,4638.9,4637.8,0.02]
[1756267892009,5.26368345,4638.9,4637.8,0.02]
[1756267892527,5.92368345,4638.9,4637.8,0.02]
[1756267892934,5.26274681,4638.9,4638.1,0.4634]
[1756267893930,2.15558557,4639.2,4638.8,0.76120001]
[1756267894135,2.15560307,4639.1,4638.9,2.1214]
[1756267894430,2.15495701,4640.5,4639.0,0.7612]
[1756267894431,2.15543566,4639.5,4639.0,0.7612]
[1756267894629,0.108,4639.6,4639.0,0.108]
[1756267894828,0.108,4639.6,4639.1,0.4634]
[1756267895030,2.15540577,4639.5,4639.2,0.4634]
[1756267895235,2.15532364,4639.7,4639.5,0.2978]
[1756267895432,6.08892911,4640.6,4639.5,0.2978]
[1756267895433,2.15535822,4639.6,4639.5,0.2978]
[1756267896001,2.15559052,4639.1,4638.9,1.658]
[1756267896207,2.26363699,4639.0,4638.9,1.658]
[1756267896425,2.26363699,4639.0,4638.9,2.1214]
[1756267896628,2.26363699,4639.0,4638.9,2.4192]
[1756267896937,2.15550254,4639.3,4638.9,2.76912]
[1756267897250,2.15542415,4639.5,4639.0,0.4634]
[1756267897529,2.15542415,4639.5,4639.4,0.2978]
[1756267897737,2.15554405,4639.2,4639.1,0.4634]
[1756267897933,2.17188735,4639.2,4639.1,0.2978]
[1756267898234,2.26354405,4639.2,4639.1,0.2978]
[1756267898434,2.26354405,4639.2,4639.1,0.7612]
[1756267898841,0.108,4639.2,4639.1,0.7612]
[1756267899008,2.15535822,4639.6,4639.1,0.7612]
[1756267899208,2.15540467,4639.5,4639.1,0.7612]
[1756267899519,2.15549759,4639.3,4639.2,0.4634]
[1756267899832,2.15549759,4639.3,4639.2,0.7612]
[1756267900536,2.15549759,4639.3,4639.2,0.2978]
[1756267901238,2.15568345,4638.9,4638.8,1e-08]
[1756267901436,2.26368345,4638.9,4638.8,1e-08]
[1756267902019,3.32595415,4638.9,4638.8,1e-08]
[1756267902415,3.30961085,4638.9,4638.8,1e-08]
[1756267903242,6.30961085,4638.9,4638.8,1e-08]
[1756267903737,6.00561085,4638.9,4638.8,0.29780001]
[1756267903925,2.15568345,4638.9,4638.8,0.76220001]
[1756267905106,2.15563372,4639.1,4638.8,0.76220001]
[1756267905309,2.15563699,4639.0,4638.9,0.4634]
[1756267905517,2.15559743,4639.1,4638.9,0.7612]
[1756267905739,0.108,4639.2,4639.0,0.4634]
[1756267905920,2.15559052,4639.1,4638.9,0.2978]
[1756267906508,2.15563699,4639.0,4638.9,0.2978]
[1756267907540,0.002,4639.3,4638.9,0.7612]
[1756267907706,0.002,4639.3,4638.8,0.00100001]
[1756267907908,2.15568345,4638.9,4638.8,0.00100001]
[1756267908113,2.58681289,4638.9,4638.8,0.00100001]
[1756267909541,2.15568345,4638.9,4638.8,0.00100001]
[1756267909911,2.17202675,4638.9,4638.8,0.00100001]
[1756267910116,2.15568345,4638.9,4638.8,0.00100001]
[1756267910909,2.17202675,4638.9,4638.8,0.00100001]
[1756267911111,5.47602675,4638.9,4638.8,0.00100001]
[1756267911346,2.15591583,4638.4,4638.2,1.658]
[1756267911548,2.15591583,4638.4,4637.8,0.021]
[1756267911549,2.17225913,4638.4,4637.8,0.021]
[1756267911848,2.28025913,4638.4,4637.8,0.021]
[1756267912036,2.58425913,4638.4,4637.8,0.021]
[1756267912236,3.05826944,4638.4,4637.8,0.021]
[1756267912452,3.04192614,4638.4,4637.8,0.021]
[1756267913857,2.73792614,4638.4,4637.8,0.021]
[1756267915864,2.26391583,4638.4,4638.3,0.2988]
[1756267916027,2.26391583,4638.4,4638.3,0.001]
[1756267916733,5.56791583,4638.4,4638.3,0.001]
[1756267916933,10.61351583,4638.4,4638.3,0.001]
[1756267917356,5.56791583,4638.4,4638.3,0.001]
[1756267918591,5.65436483,4638.4,4638.3,0.001]
[1756267919074,6.31436483,4638.4,4638.3,1e-08]
[1756267919443,6.75826483,4638.4,4638.3,1e-08]
[1756267920397,6.01036483,4638.4,4638.3,1e-08]
[1756267920597,6.74896483,4638.4,4638.3,1e-08]
[1756267920775,6.30506483,4638.4,4638.3,1e-08]
[1756267921494,6.01036483,4638.4,4638.3,1e-08]
[1756267921999,5.35036483,4638.4,4638.3,1e-08]
[1756267922412,2.26391583,4638.4,4638.3,0.30760001]